[Event "WSTCC-65 2024"]
[Site "Krakow"]
[Date "2024.07.05"]
[Round "4.3"]
[White "Lanc, Alois"]
[Black "Mestel, A Jonathan"]
[Result "1/2-1/2"]
[ECO "B93"]
[WhiteElo "2256"]
[BlackElo "2470"]
[Annotator "TA"]
[PlyCount "86"]
[EventDate "2024.07.01"]
[EventType "team-tourn"]
[EventCountry "POL"]
[SourceTitle "playchess.com"]
[Source "ChessBase"]
[SourceQuality "1"]
[TimeControl "40/5400+30:1800+30"]

{[%evp 11,86,3,38,-16,88,74,87,96,108,98,103,100,124,62,119,122,214,145,153,137,144,144,253,177,183,193,198,203,197,193,202,152,152,148,170,129,133,116,125,106,120,125,120,131,189,106,222,212,219,216,239,230,543,177,199,187,190,200,179,173,207,197,287,293,454,439,535,491,493,86,87,92,95,64,55,33,48]} 1. e4 {[%emt 0:00:04]} c5 {[%emt 0:00:25]} 2. Nf3 {[%emt 0:00:18]} d6 {[%emt 0:00:26]} 3. d4 {[%emt 0:00:06]} cxd4 {[%emt 0:00:26]} 4. Nxd4 {[%emt 0:00:26]} Nf6 {[%emt 0:00:16]} 5. Nc3 {[%emt 0:00:15]} a6 {[%emt 0:00:47]} 6. f4 {[%emt 0:02:05]} Nbd7 {[%emt 0:01:49]} 7. Nf3 {[%emt 0:02:08]} (7. Be2 $14) 7... g6 {[%emt 0:02:41]} (7... e6 $11 {remains equal.}) 8. e5 $1 $16 {[%emt 0:03:29]} dxe5 {[%emt 0:30:07]} 9. fxe5 {[%emt 0:00:19] White is better.} Ng4 {[%emt 0:00:15][%cal Of8g7] [#]} 10. e6 $1 {[%emt 0:03:39][%mdl 512]} fxe6 {[%emt 0:00:08]} 11. Ng5 {[%emt 0:03:58][%csl LRe6,LRg4]} Nde5 {[%emt 0:04:54]} 12. Qxd8+ {[%emt 0:08:59]} Kxd8 {[%emt 0:00:07]} 13. h3 {[%emt 0:06:04]} Nh6 {[%emt 0:00:55]} (13... Nf6 $16) 14. Na4 {[%emt 0:10:29] Black must now prevent Nb6.} Nef7 {[%emt 0:14:50]} 15. Nb6 $36 {[%emt 0:09:01][%mdl 2048] White is on the roll.} Rb8 {[%emt 0:00:44] [#]} 16. Bc4 $1 {[%emt 0:05:44]} (16. Bf4 e5 17. Bh2 Bg7 (17... Nxg5 $2 18. Bxe5 Nf5 19. Bxb8 $18) 18. Rd1+ Ke8 19. Nxf7 Nxf7 $16) 16... Nxg5 {[%emt 0:20:59]} (16... Bg7 $16 17. Nxf7+ (17. Bxe6 Nxg5 18. Bxc8 Ne4 $11) (17. Nxe6+ Bxe6 18. Bxe6 Kc7 $16) 17... Nxf7 18. Nxc8 Rxc8 19. Bxe6 Nd6) 17. Bxg5 {[%emt 0:00:21] Bf4 is the strong threat.} Nf7 {[%emt 0:00:51]} 18. O-O-O+ {[%emt 0:13:12]} Kc7 {[%emt 0:00:55][%cal Bd8c7,Bc7b6,Bb6c5][%mdl 32]} 19. Bf4+ {[%emt 0:00:31]} Kxb6 {[%emt 0:09:29]} 20. Bxb8 {[%emt 0:00:09]} Nd6 {[%emt 0:00:29]} 21. Bxd6 {[%emt 0:01:22]} exd6 {[%emt 0:00:16]} 22. Rhf1 {[%emt 0:00:34]} Bd7 {[%emt 0:03:05]} 23. Kb1 {[%emt 0:02:03]} d5 {[%emt 0:02:02]} 24. Bb3 {[%emt 0:00:23]} (24. Rf7 $2 Be8 25. Rf6 dxc4 $19) 24... Kc5 {[%emt 0:01:16]} 25. Rf7 {[%emt 0:01:01]} Bc6 {[%emt 0:01:57]} 26. Re1 {[%emt 0:01:16]} Kd6 {[%emt 0:00:31]} 27. c4 {[%emt 0:03:04] White is much more active.} d4 {[%emt 0:00:16]} (27... Bh6 $16 28. cxd5 exd5) 28. Rf6 {[%emt 0:01:05]} (28. c5+ $18 Kxc5 29. Re5+ (29. Rxe6 d3 $14) 29... Kb6 30. Rxe6) 28... Bd7 {[%emt 0:00:51] [#]} (28... Kd7 $16) 29. c5+ $1 $18 {[%emt 0:01:06][%mdl 512]} Kxc5 {[%emt 0:01:50]} 30. Bxe6 {[%emt 0:00:38]} Bc6 {[%emt 0:00:07][%cal Od4d3]} 31. Rc1+ {[%emt 0:03:37]} Kd6 $2 {[%emt 0:00:10]} (31... Kb4 {is tougher.} 32. a3+ Ka5 33. b4+ Kb5) 32. Bc4+ $2 {[%emt 0:02:43]} (32. Bg8+ Ke7 33. Rf7+ Kd6 34. Rxf8) 32... Ke5 {[%emt 0:00:26]} 33. Rcf1 {[%emt 0:01:50][%csl Gc4][%cal Rf6e6]} Be4+ {[%emt 0:00:05]} 34. Ka1 {[%emt 0:00:34]} Bf5 {[%emt 0:00:01] [#] Wards off Re6+} 35. Rf7 {[%emt 0:02:19][%cal Og2g4] Threatens to win with g4!} b5 {[%emt 0:00:17]} 36. Re1+ {[%emt 0:02:43]} Kd6 {[%emt 0:00:49]} (36... Kf4 $142) 37. Rf6+ {[%emt 0:04:13]} Kc5 {[%emt 0:02:00]} (37... Kd7 $142 38. Bd5 (38. Be6+ Bxe6 39. Rfxe6 Bb4 $16) 38... Bb4) 38. Bb3 {[%emt 0:02:28]} Bh6 {[%emt 0:00:58] Repels Rc1+} 39. g4 {[%emt 0:02:17] Re5+ would now be deadly.} (39. Rxa6 Be3 40. a3 Bd3 $18) 39... Bd3 {[%emt 0:00:04]} 40. a3 $2 {[%emt 0:00:27]} ({Less strong is} 40. Rxa6 Be3 41. Rf6 h5 $16) ({But not} 40. Re5+ Kb4 41. Bd1 (41. Rxa6 Rc8 $16) 41... Rc8 42. a3+ (42. Rxa6 $2 Rc1#) 42... Kc4) (40. g5 $18 {is more deadly.} Bg7 41. Rf7 (41. Rxa6 Bc4 $18)) 40... Be3 $16 {[%emt 0:00:18]} 41. Rxa6 {[%emt 0:06:47]} Rf8 {[%emt 0:13:49] Dodges Bf7} 42. Re6 {[%emt 0:06:11]} Rf3 {[%emt 0:01:12]} 43. h4 {[%emt 0:08:58]} Rh3 {Weighted Error Value: White=0.43/Black=0.44.  Missed win:     	White=1     	---        Mistake:       	White=2     	Black=8      Inaccurate:     	White=3     	Black=1      OK:         	White=12    	Black=16     Best:        	White=8     	Black=3      Strong:       	White=1     	---        Brilliant:      	White=1     	---} 1/2-1/2

[Event "WSTCC-65 2024"]
[Site "Krakow"]
[Date "2024.07.05"]
[Round "4.3"]
[White "Reuben, Stewart"]
[Black "Ungure, Liga"]
[Result "0-1"]
[ECO "D71"]
[WhiteElo "1995"]
[BlackElo "1970"]
[Annotator "NA RC"]
[PlyCount "40"]
[EventDate "2024.07.01"]
[EventType "team-tourn"]
[EventCountry "POL"]
[SourceTitle "playchess.com"]
[Source "ChessBase"]
[SourceQuality "1"]
[TimeControl "40/5400+30:1800+30"]

1. d4 {[%emt 0:00:05]} Nf6 {[%emt 0:00:05]} 2. c4 {[%emt 0:00:09]} g6 {[%emt 0:00:05]} 3. g3 {[%emt 0:00:11]} Bg7 {[%emt 0:00:04]} 4. Bg2 {[%emt 0:00:10]} O-O {[%emt 0:00:10]} 5. Nc3 {[%emt 0:00:07]} d6 {[%emt 0:00:57]} 6. e4 {[%emt 0:00:15]} c5 {[%emt 0:00:45]} 7. d5 {[%emt 0:02:09]} e6 {[%emt 0:05:13]} 8. Nge2 {[%emt 0:03:11]} exd5 {[%emt 0:00:13]} 9. Nxd5 {[%emt 0:09:13]} Nxd5 {[%emt 0:04:44]} 10. Qxd5 {[%emt 0:02:00]} Nc6 {[%emt 0:05:05]} 11. Bg5 {[%emt 0:23:40]} Qa5+ {[%emt 0:06:04]} 12. Bd2 {[%emt 0:01:49]} Qb6 {[%emt 0:02:24]} 13. O-O {[%emt 0:13:19]} Be6 {[%emt 0:03:10]} 14. Qxd6 {[%emt 0:03:41]} Nd4 {[%emt 0:01:11]} 15. Qxb6 {[%emt 0:01:55]} Nxe2+ {[%emt 0:00:10]} 16. Kh1 {[%emt 0:00:11]} axb6 {[%emt 0:00:19]} 17. Rfe1 {[%emt 0:00:33]} Nd4 {[%emt 0:02:47]} 18. Rec1 {[%emt 0:02:05]} Ra4 {[%emt 0:04:18]} 19. b3 {[%emt 0:03:39]} Nxb3 {[%emt 0:00:46]} 20. axb3 {[%emt 0:02:04]} Rxa1 {[%emt 0:00:12]} 0-1

[Event "WSTCC-65 2024"]
[Site "Krakow"]
[Date "2024.07.05"]
[Round "4.4"]
[White "Chapman, Terry P D"]
[Black "Petran, Peter"]
[Result "1/2-1/2"]
[ECO "A80"]
[WhiteElo "2287"]
[BlackElo "2195"]
[Annotator "TA"]
[PlyCount "46"]
[EventDate "2024.07.01"]
[EventType "team-tourn"]
[EventCountry "POL"]
[SourceTitle "playchess.com"]
[Source "ChessBase"]
[SourceQuality "1"]
[TimeControl "40/5400+30:1800+30"]

{[%evp 18,46,4,8,9,6,12,0,4,2,3,8,6,0,10,13,14,8,0,5,0,0,0,0,0,0,1,0,0,0,0]} 1. d4 {[%emt 0:00:04]} f5 {[%emt 0:01:26]} 2. Nf3 {[%emt 0:01:00]} Nf6 {[%emt 0:01:59]} 3. g3 {[%emt 0:00:33]} b6 {[%emt 0:03:33]} 4. Bg2 {[%emt 0:00:15]} Bb7 {[%emt 0:00:08]} 5. c4 {[%emt 0:01:01]} e6 {[%emt 0:00:06]} 6. a3 {[%emt 0:00:53]} Be7 {[%emt 0:04:28]} 7. Nc3 {[%emt 0:00:24]} O-O {[%emt 0:02:54]} 8. O-O {[%emt 0:02:34]} Ne4 {[%emt 0:00:35]} 9. Qc2 {[%emt 0:08:36]} Nxc3 {[%emt 0:00:31]} 10. Qxc3 {[%emt 0:00:44] Die Stellung ist ausgeglichen.} Bf6 {[%emt 0:01:45]} 11. b4 {[%emt 0:07:10]} c5 {[%emt 0:05:36]} 12. Be3 {[%emt 0:08:19]} Bxf3 {[%emt 0:13:04]} 13. Bxf3 {[%emt 0:01:14]} ({Ein No Go ist} 13. exf3 Nc6 14. Qb3 (14. bxc5 bxc5 15. Qb3 Nxd4 $17) 14... Bxd4 $15 (14... Nxd4 15. Qd3 $15)) 13... Nc6 {[%emt 0:00:05]} 14. Bxc6 {[%emt 0:04:11]} dxc6 {[%emt 0:00:05]} 15. Rad1 {[%emt 0:00:55]} Qc7 {[%emt 0:01:36]} 16. bxc5 {[%emt 0:08:13]} bxc5 {[%emt 0:00:13]} 17. Qc2 {[%emt 0:01:30]} cxd4 {[%emt 0:02:25]} 18. Bxd4 {[%emt 0:03:16]} Bxd4 {[%emt 0:00:18]} 19. Rxd4 {[%emt 0:00:01]} Rfd8 {[%emt 0:00:18]} 20. Rfd1 {[%emt 0:00:19]} Rxd4 {[%emt 0:00:11]} 21. Rxd4 {[%emt 0:00:21] Droht Qd3.} Rd8 {[%emt 0:00:21]} 22. Qd3 {[%emt 0:01:25]} Rxd4 {[%emt 0:00:14]} 23. Qxd4 {[%emt 0:00:03]} c5 {[%emt 0:00:16] Nicht viel passiert in dieser Partie.   Gewichteter Fehlerwert: Weiß=0.01 (makellos) /Schwarz=0.02 (makellos) .  OK:         	Weiß=4     	Schwarz=5     Bester:       	---       	Schwarz=1} 1/2-1/2

[Event "WSTCC-65 2024"]
[Site "Krakow"]
[Date "2024.07.05"]
[Round "4.4"]
[White "Beaumont, Chris R"]
[Black "Malienko, Alexander"]
[Result "1-0"]
[ECO "A37"]
[WhiteElo "2198"]
[BlackElo "1904"]
[Annotator "RC"]
[PlyCount "75"]
[EventDate "2024.07.01"]
[EventType "team-tourn"]
[EventCountry "POL"]
[SourceTitle "playchess.com"]
[Source "ChessBase"]
[SourceQuality "1"]
[TimeControl "40/5400+30:1800+30"]

1. Nf3 {[%emt 0:03:30]} c5 {[%emt 0:00:18]} 2. c4 {[%emt 0:00:13]} g6 {[%emt 0:00:32]} 3. g3 {[%emt 0:00:07]} Bg7 {[%emt 0:00:20]} 4. Bg2 {[%emt 0:00:07]} Nc6 {[%emt 0:00:40]} 5. Nc3 {[%emt 0:00:13]} e6 {[%emt 0:01:59]} 6. d4 {[%emt 0:00:37]} cxd4 {[%emt 0:17:04]} 7. Nb5 {[%emt 0:00:38]} d5 {[%emt 0:17:38]} 8. cxd5 {[%emt 0:01:06]} Qa5+ {[%emt 0:00:08]} 9. Nd2 {[%emt 0:00:18]} Qxb5 {[%emt 0:01:22]} 10. dxc6 {[%emt 0:00:11]} bxc6 {[%emt 0:01:12]} 11. a4 {[%emt 0:00:49]} Qb6 {[%emt 0:01:25]} 12. b4 {[%emt 0:13:54]} Rb8 {[%emt 0:05:32]} 13. Ba3 {[%emt 0:03:59]} Ne7 {[%emt 0:04:06]} 14. b5 {[%emt 0:02:07]} cxb5 {[%emt 0:14:26]} 15. axb5 {[%emt 0:03:08]} Qd8 {[%emt 0:02:13]} 16. Qa4 {[%emt 0:33:17]} Bd7 {[%emt 0:07:46]} 17. Rb1 {[%emt 0:06:53]} O-O {[%emt 0:05:47]} 18. O-O {[%emt 0:07:56]} Re8 {[%emt 0:02:11]} 19. Ne4 {[%emt 0:18:58]} Nd5 {[%emt 0:06:14]} 20. Bd6 {[%emt 0:00:41]} Ra8 {[%emt 0:01:25]} 21. Qc4 {[%emt 0:01:26]} f5 {[%emt 0:02:44]} 22. Nc5 {[%emt 0:00:39]} Bxb5 {[%emt 0:00:50]} 23. Rxb5 {[%emt 0:00:01]} Qxd6 {[%emt 0:00:25]} 24. Nxe6 {[%emt 0:00:01]} Rxe6 {[%emt 0:04:18]} 25. Bxd5 {[%emt 0:01:00]} Rae8 {[%emt 0:00:17]} 26. Rb7 {[%emt 0:00:31]} Kf8 {[%emt 0:00:58]} 27. Bxe6 {[%emt 0:00:06]} Qxe6 {[%emt 0:00:22]} 28. Qxe6 {[%emt 0:00:33]} Rxe6 {[%emt 0:00:18]} 29. Rc1 {[%emt 0:00:05]} Bf6 {[%emt 0:01:01]} 30. Rc8+ {[%emt 0:00:11]} Re8 {[%emt 0:00:14]} 31. Rxe8+ {[%emt 0:00:05]} Kxe8 {[%emt 0:00:11]} 32. Rxa7 {[%emt 0:00:25]} Be7 {[%emt 0:00:33]} 33. Kf1 {[%emt 0:00:40]} Kf7 {[%emt 0:00:23]} 34. Ke1 {[%emt 0:00:07]} Ke6 {[%emt 0:00:27]} 35. Kd2 {[%emt 0:00:10]} h5 {[%emt 0:00:19]} 36. Kd3 {[%emt 0:01:05]} Bf6 {[%emt 0:00:19]} 37. Ra6+ {[%emt 0:00:12]} Kf7 {[%emt 0:00:14]} 38. h4 {[%emt 0:00:33]} 1-0

[Event "WSTCC-65 2024"]
[Site "Krakow"]
[Date "2024.07.05"]
[Round "4.4"]
[White "Priedite, Ingrida"]
[Black "Kane, Robert"]
[Result "1/2-1/2"]
[ECO "A20"]
[WhiteElo "2044"]
[BlackElo "1849"]
[Annotator "NA RC"]
[PlyCount "42"]
[EventDate "2024.07.01"]
[EventType "team-tourn"]
[EventCountry "POL"]
[SourceTitle "playchess.com"]
[Source "ChessBase"]
[SourceQuality "1"]
[TimeControl "40/5400+30:1800+30"]

1. c4 {[%emt 0:00:04]} e5 {[%emt 0:00:15]} 2. g3 {[%emt 0:00:25]} Nc6 {[%emt 0:00:13]} 3. Bg2 {[%emt 0:00:26]} Bc5 {[%emt 0:00:20]} 4. Nc3 {[%emt 0:00:53]} a6 {[%emt 0:00:59]} 5. e3 {[%emt 0:05:17]} d6 {[%emt 0:00:35]} 6. Nge2 {[%emt 0:00:33]} Nge7 {[%emt 0:01:14]} 7. O-O {[%emt 0:01:25]} Ba7 {[%emt 0:02:25]} 8. h3 {[%emt 0:03:32]} h5 {[%emt 0:04:05]} 9. Nd5 {[%emt 0:03:36]} h4 {[%emt 0:04:43]} 10. g4 {[%emt 0:03:11]} f5 {[%emt 0:07:39]} 11. gxf5 {[%emt 0:09:59]} Bxf5 {[%emt 0:04:26]} 12. d4 {[%emt 0:01:56]} Nxd5 {[%emt 0:17:42]} 13. cxd5 {[%emt 0:00:21]} Ne7 {[%emt 0:00:52]} 14. dxe5 {[%emt 0:01:03]} dxe5 {[%emt 0:00:35]} 15. Qa4+ {[%emt 0:13:38]} Qd7 {[%emt 0:15:06]} 16. Qxd7+ {[%emt 0:02:01]} Kxd7 {[%emt 0:01:23]} 17. b4 {[%emt 0:05:19]} Bd3 {[%emt 0:06:33]} 18. Re1 {[%emt 0:00:45]} Kd6 {[%emt 0:01:16]} 19. Nc3 {[%emt 0:01:59]} a5 {[%emt 0:06:03]} 20. a3 {[%emt 0:03:46]} axb4 {[%emt 0:00:56]} 21. axb4 {[%emt 0:00:18]} Bb6 {[%emt 0:01:19]} 1/2-1/2

[Event "WSTCC-65 2024"]
[Site "Krakow"]
[Date "2024.07.05"]
[Round "4.5"]
[White "Mikhalevski, Alexander"]
[Black "Roos, Daniel"]
[Result "1/2-1/2"]
[ECO "D11"]
[WhiteElo "2393"]
[BlackElo "2307"]
[Annotator "TA"]
[PlyCount "109"]
[EventDate "2024.07.01"]
[EventType "team-tourn"]
[EventCountry "POL"]
[SourceTitle "playchess.com"]
[Source "ChessBase"]
[SourceQuality "1"]
[TimeControl "40/5400+30:1800+30"]

{[%evp 35,108,49,35,46,108,104,137,114,172,172,172,176,164,151,179,108,102,95,106,87,79,86,112,119,115,120,128,119,99,92,118,116,164,176,208,213,220,218,217,207,293,234,218,71,67,65,104,91,29979,29980,29980,29981,29980,29981,29981,12788,29976,29977,29977,29978,29978,6274,6275,0,29978,29979,29978,29979,29979,0,0,0,0,0,0]} 1. d4 {[%emt 0:00:06]} d5 {[%emt 0:00:59]} 2. c4 {[%emt 0:00:09]} c6 {[%emt 0:00:09]} 3. Nf3 {[%emt 0:00:09]} Nf6 {[%emt 0:00:47]} 4. e3 {[%emt 0:00:08]} g6 {[%emt 0:01:22]} 5. Nc3 {[%emt 0:00:20]} Bg7 {[%emt 0:00:10]} 6. Qb3 {[%emt 0:00:29]} e6 {[%emt 0:04:50]} 7. Bd3 {[%emt 0:00:15]} O-O {[%emt 0:00:57]} 8. O-O {[%emt 0:00:07]} Nbd7 {[%emt 0:03:38]} 9. e4 {[%emt 0:02:36]} dxe4 {[%emt 0:03:44]} 10. Bxe4 {[%emt 0:00:10]} Nxe4 {[%emt 0:10:16]} 11. Nxe4 {[%emt 0:00:11]} Qc7 {[%emt 0:00:37]} 12. c5 {[%emt 0:04:15]} b6 {[%emt 0:02:36]} 13. Bg5 {[%emt 0:18:06]} Ba6 {[%emt 0:10:01]} 14. Rfc1 {[%emt 0:14:08]} Be2 {[%emt 0:07:26]} 15. Rc2 {[%emt 0:12:12]} Bxf3 {[%emt 0:02:50]} 16. Qxf3 {[%emt 0:00:05]} bxc5 {[%emt 0:10:20]} 17. Be7 {[%emt 0:04:24]} Rfe8 {[%emt 0:05:09]} 18. Bd6 {[%emt 0:00:20]} Qa5 {[%emt 0:00:57]} 19. dxc5 {[%emt 0:02:27]} h6 {[%emt 0:01:56]} ({Black should try} 19... Rad8 $14) 20. h4 {[%emt 0:03:01]} Qa4 {[%emt 0:04:31]} 21. b3 {[%emt 0:01:10]} Qa6 {[%emt 0:01:42]} (21... Qb5 $16 {is a better defense.} 22. Bg3 Ne5 (22... Bxa1 $2 23. Nd6 $18) 23. Bxe5 Bxe5) 22. Rd1 $18 {[%emt 0:00:19]} f5 {[%emt 0:00:43]} 23. Nd2 $1 {[%emt 0:03:40]} Nf6 {[%emt 0:05:47]} 24. Nc4 {[%emt 0:04:32]} Ne4 {[%emt 0:02:35]} 25. Qe3 {[%emt 0:01:14]} (25. Be5 $18 {Strongly threatening Bxg7.} Bxe5 26. Nxe5) 25... Rad8 $16 {[%emt 0:01:15]} 26. Qe1 {[%emt 0:03:52]} Kh7 {[%emt 0:01:35]} 27. f3 {[%emt 0:02:46]} Nf6 {[%emt 0:00:09]} 28. Be5 {[%emt 0:05:23]} Rxd1 {[%emt 0:06:38]} 29. Qxd1 {[%emt 0:00:02]} Nd5 {[%emt 0:00:19]} 30. Bxg7 {[%emt 0:01:12]} Kxg7 {[%emt 0:00:06]} 31. Qd4+ {[%emt 0:00:05]} Kh7 {[%emt 0:00:11]} 32. Qe5 {[%emt 0:01:26]} Qb7 {[%emt 0:02:03]} 33. Qd6 $1 {[%emt 0:03:19]} a5 {[%emt 0:03:43]} (33... h5 $16) 34. Re2 $18 {[%emt 0:03:35]} (34. Nxa5 Qb4 35. Nxc6 Qe1+ 36. Kh2 Qxh4+ 37. Kg1 Qe1+ 38. Kh2 Qh4+ 39. Kg1 Qe1+ 40. Kh2 Qh4+ $11) 34... a4 {[%emt 0:01:16]} 35. Rxe6 {[%emt 0:01:28]} (35. bxa4 Qa6 36. Rc2 (36. Rxe6 Rxe6 37. Qxe6 Qxc4 $11) (36. h5 Qxc4 37. Rxe6 Rxe6 $17) 36... Qxa4 $11) 35... Rxe6 {[%emt 0:00:10]} 36. Qxe6 {[%emt 0:00:05]} axb3 {[%emt 0:00:05]} 37. axb3 {[%emt 0:00:05]} Qxb3 (37... Qe7 {was worth a try.} 38. Qxe7+ (38. Qxc6 Nb4 $11) 38... Nxe7) 38. h5 {[%emt 0:03:16]} gxh5 {[%emt 0:04:57]} (38... Qxc4 39. hxg6+ (39. Qxg6+ Kh8 $11) 39... Kh8 40. Qe8+ (40. Qxc6 $2 Qd4+ 41. Kf1 Qd1+ 42. Kf2 Qd2+ 43. Kg3 Qe1+ 44. Kh2 Qe5+ 45. Kg1 Nf4 $19) 40... Kg7 41. Qf7+ Kh8 42. Qh7#) 39. Qxf5+ {[%emt 0:01:26]} (39. Ne5 $1 $18 {and the rest is easy. Threatening mate with Qf7+.} Qe3+ 40. Kh2) 39... Kg7 $16 {[%emt 0:01:34]} 40. Qe5+ {[%emt 0:02:04]} Nf6 {[%emt 0:01:27]} 41. Nd6 {[%emt 0:12:58]} Qd5 $2 {[%emt 0:11:09][%mdl 8192]} (41... Kg6 $16) 42. Nf5+ {[%emt 0:08:22]} Kf7 {[%emt 0:00:21]} 43. Qe7+ {[%emt 0:01:53]} (43. Nxh6+ Kg6 44. Qe3 Qd1+ 45. Kf2 Qd7 $11) 43... Kg6 {[%emt 0:00:07]} 44. Nh4+ {[%emt 0:00:12]} Kg5 {[%emt 0:00:06]} 45. Qg7+ {[%emt 0:01:06]} (45. Qe3+ $142 Kxh4 46. Qf4+ (46. Qxh6 $2 Kg3 $19) (46. Kh2 Ng4+ 47. fxg4 Kxg4 $11) 46... Ng4 47. fxg4 Qe6 48. g5+ Qg4 49. Qxg4+ Kxg4 50. gxh6 (50. g6 Kf5 51. g7 Ke5 52. g8=Q Kd4 53. Qf8 Kc4 54. Qd6 Kb5)) 45... Kxh4 {[%emt 0:00:13]} 46. Qxf6+ {[%emt 0:00:07]} Qg5 {[%emt 0:00:37] [#]} 47. Qd4+ $1 {[%emt 0:01:05]} ({Inferior is} 47. Qxc6 Qc1+ 48. Kf2 Qxc5+ 49. Qxc5 $11) 47... Kg3 {[%emt 0:00:08]} 48. Qf2+ {[%emt 0:08:31]} (48. Qd6+ $142 Qf4 49. Kf1 (49. Qxc6 $2 Qc1#) 49... Qxd6 50. cxd6 h4 51. Ke2 (51. d7 h3 52. gxh3 Kxf3 53. d8=Q Kf4 54. Qf6+ Ke4 55. Qxc6+ Ke5) 51... Kf4 52. d7 h5 53. d8=Q (53. d8=B h3 $18)) 48... Kf4 $18 {[%emt 0:00:11]} 49. Qd4+ {[%emt 0:00:04]} (49. Qd2+ $18 Kg3 50. Qd6+ Qf4 51. Kf1 (51. Qxc6 $2 Qc1#)) 49... Kg3 {[%emt 0:00:10] [#]} 50. Qd6+ $1 {[%emt 0:03:29]} Qf4 {[%emt 0:00:16]} 51. Kf1 {[%emt 0:00:06]} (51. Qxc6 $2 Qc1#) 51... h4 52. Kg1 $2 {[%emt 0:01:12]} (52. Ke2 {mates} h5 53. Ke1 h3 54. gxh3 Kxf3 55. Qxc6+ Ke3 56. Qe6+ Kf3 57. Qd5+ Kg3 58. Qd6 (58. Qxh5 Qe3+ 59. Qe2 Qc1+ 60. Qd1 Qe3+ 61. Qe2 Qc1+ 62. Qd1 Qe3+ 63. Qe2 $11)) 52... h3 $11 {[%emt 0:02:31]} 53. gxh3 {[%emt 0:01:03]} h5 {[%emt 0:04:03]} 54. h4 (54. Qxc6 $2 Qc1#) 54... Kh3 $1 55. Qxf4 1/2-1/2